fUSD/lending_fUSD_20250101
["ID","MTS","AMOUNT","RATE_DAILY","PERIOD"]
[347353624,1735725052984,-1000.0,0.00011014,2]
[347353625,1735725052993,-500.0,0.00011014,2]
[347353626,1735725053002,-500.0,0.00011014,2]
[347353628,1735725053011,-500.0,0.00011014,2]
[347353629,1735725053020,-500.0,0.00011014,2]
[347353631,1735725053028,-2554.76,0.00011014,2]
[347353633,1735725053037,-3916.46,0.00011014,2]
[347353635,1735725053046,-2020.56,0.00011014,2]
[347353637,1735725053055,-9038.57,0.00011014,2]
[347353639,1735725053064,-19709.35,0.00011014,2]
[347353641,1735725053073,-7876.9,0.00011014,2]
[347353643,1735725053082,-6720.5,0.00011014,2]
[347353645,1735725053091,-4013.2,0.00011014,2]
[347353647,1735725053100,-3845.98,0.00011014,2]
[347353649,1735725053108,-2482.81,0.00011014,2]
[347353651,1735725053117,-50934.66386948,0.00011015,2]
[347353653,1735725053126,-666.0,0.00011016,2]
[347353655,1735725053135,-1120.5,0.00011016,2]
[347353657,1735725053144,-989.63,0.00011016,2]
[347353659,1735725053153,-500.0,0.00011016,2]
[347353661,1735725053162,-500.0,0.00011016,2]
[347353663,1735725053172,-500.0,0.00011016,2]
[347353665,1735725053181,-500.0,0.00011016,2]
[347353667,1735725053191,-500.0,0.00011016,2]
[347353669,1735725053200,-507.77545151,0.00011016,2]
[347353671,1735725053209,-947.34,0.00011016,2]
[347353673,1735725053219,-582.75,0.00011016,2]
[347353675,1735725053228,-500.0,0.00011016,2]
[347353677,1735725053237,-657.72,0.00011016,2]
[347353679,1735725053247,-1236.37,0.00011016,2]
[347353681,1735725053256,-847.39,0.00011016,2]
[347353683,1735725053265,-500.0,0.00011016,2]
[347353685,1735725053276,-500.0,0.00011016,2]
[347353687,1735725053286,-536.65,0.00011016,2]
[347353689,1735725053295,-500.0,0.00011016,2]
[347353691,1735725053304,-500.0,0.00011016,2]
[347353693,1735725053314,-1659.68,0.00011016,2]
[347353695,1735725053323,-930.76,0.00011016,2]
[347353698,1735725053333,-527.65,0.00011016,2]
[347353700,1735725053342,-500.0,0.00011016,2]
[347353702,1735725053351,-1335.29,0.00011016,2]
[347353704,1735725053360,-500.0,0.00011016,2]
[347353706,1735725053370,-500.0,0.00011016,2]
[347353708,1735725053379,-500.0,0.00011016,2]
[347353710,1735725053389,-561.0671098,0.00011016,2]
[347353712,1735725053404,-113.5528902,0.00011016,2]
[347353714,1735725053414,-956.53,0.00011016,2]
[347353716,1735725053423,-500.0,0.00011016,2]
[347353718,1735725053432,-500.0,0.00011016,2]
[347353720,1735725053441,-695.17,0.00011016,2]
[347353722,1735725053451,-512.33,0.00011016,2]
[347353724,1735725053460,-522.2131093,0.00011016,2]
[347353863,1735725054748,-3025.96956689,0.00010073,2]
[347353865,1735725054760,-4423.04168,0.00010073,2]
[347353868,1735725054771,-2550.98875311,0.00010073,2]
[347353870,1735725054781,-213.21094151,0.000109,2]
[347353872,1735725054790,-1047.1268907,0.00011016,2]
[347353874,1735725054799,-500.93442923,0.00011016,2]
[347353876,1735725054808,-500.0,0.00011016,2]
[347353878,1735725054818,-718.41,0.00011016,2]
[347353880,1735725054827,-500.0,0.00011016,2]
[347353882,1735725054836,-500.0,0.00011016,2]
[347353884,1735725054846,-1285.77,0.00011016,2]
[347353886,1735725054855,-500.0,0.00011016,2]
[347353888,1735725054864,-410.74950448,0.00011016,2]
[347353890,1735725054873,-500.0,0.00011016,2]
[347353892,1735725054883,-500.0,0.00011016,2]
[347353894,1735725054892,-500.0,0.00011016,2]
[347353896,1735725054902,-669.3,0.00011016,2]
[347353898,1735725054911,-1189.66,0.00011016,2]
[347353900,1735725054920,-500.0,0.00011016,2]
[347353902,1735725054929,-751.49,0.00011016,2]
[347353904,1735725054938,-525.29,0.00011016,2]
[347353906,1735725054947,-2163.54,0.00011016,2]
[347353908,1735725054957,-866.35,0.00011016,2]
[347353910,1735725054967,-500.0,0.00011016,2]
[347353912,1735725054978,-1919.99,0.00011016,2]
[347353914,1735725054988,-500.0,0.00011016,2]
[347353916,1735725054998,-404.53570619,0.00011016,2]
[347353918,1735725055007,-500.0,0.00011016,2]
[347353920,1735725055017,-500.0,0.00011016,2]
[347353922,1735725055026,-2208.92,0.00011016,2]
[347353924,1735725055036,-500.0,0.00011016,2]
[347353926,1735725055045,-1294.4,0.00011016,2]
[347353929,1735725055055,-500.0,0.00011016,2]
[347353931,1735725055064,-500.0,0.00011016,2]
[347353933,1735725055073,-500.0,0.00011016,2]
[347353935,1735725055083,-500.0,0.00011016,2]
[347353937,1735725055092,-2793.46,0.00011016,2]
[347353939,1735725055101,-639.57,0.00011016,2]
[347353941,1735725055110,-569.96,0.00011016,2]
[347353943,1735725055120,-500.0,0.00011016,2]
[347353945,1735725055129,-500.0,0.00011016,2]
[347353947,1735725055139,-672.9,0.00011016,2]
[347353949,1735725055150,-505.71,0.00011016,2]
[347353951,1735725055161,-611.21,0.00011016,2]
[347353953,1735725055171,-856.38,0.00011016,2]
[347353955,1735725055180,-654.23,0.00011016,2]
[347353957,1735725055189,-500.0,0.00011016,2]
[347353959,1735725055199,-500.0,0.00011016,2]
[347353961,1735725055209,-851.48,0.00011016,2]
[347353963,1735725055219,-500.0,0.00011016,2]
[347353965,1735725055228,-500.0,0.00011016,2]
[347353967,1735725055238,-611.99,0.00011016,2]
[347353969,1735725055247,-3040.34,0.00011016,2]
[347353971,1735725055257,-500.0,0.00011016,2]
[347353974,1735725055267,-500.0,0.00011016,2]
[347353976,1735725055276,-500.0,0.00011016,2]
[347353978,1735725055286,-590.99,0.00011016,2]
[347353980,1735725055295,-669.65,0.00011016,2]
[347353982,1735725055304,-500.0,0.00011016,2]
[347353984,1735725055314,-860.71,0.00011016,2]
[347353986,1735725055323,-500.0,0.00011016,7]
[347353988,1735725055332,-500.0,0.00011016,2]
[347353990,1735725055342,-500.0,0.00011016,2]
[347353992,1735725055351,-500.0,0.00011016,2]
[347353994,1735725055360,-1400.13994599,0.00011016,2]
[347353996,1735725055373,-793.27005401,0.00011016,2]
[347353998,1735725055383,-500.0,0.00011016,2]
[347354000,1735725055392,-222.34550911,0.00011016,2]
[347354003,1735725055405,-277.65449089,0.00011016,2]
[347354005,1735725055414,-510.05,0.00011016,2]
[347354007,1735725055424,-2169.89,0.00011016,2]
[347354008,1735725055433,-500.0,0.00011016,2]
[347354009,1735725055442,-500.0,0.00011016,2]
[347354010,1735725055452,-1671.38,0.00011016,2]
[347354011,1735725055462,-500.0,0.00011016,2]
[347354012,1735725055471,-2229.87,0.00011016,2]
[347354013,1735725055481,-334.76578344,0.00011016,2]
[347354014,1735725055491,-500.0,0.00011016,2]
[347354015,1735725055500,-3301.23,0.00011016,2]
[347354016,1735725055510,-3301.23,0.00011016,2]
[347354017,1735725055520,-3301.23,0.00011016,2]
[347354018,1735725055530,-3301.23,0.00011016,2]
[347354020,1735725055540,-3301.23,0.00011016,2]
[347354022,1735725055550,-3301.23,0.00011016,2]
[347354025,1735725055560,-3301.23,0.00011016,2]
[347354027,1735725055569,-3301.23,0.00011016,2]
[347354029,1735725055579,-3301.23,0.00011016,2]
[347354031,1735725055588,-3301.4521969,0.00011016,2]
[347354033,1735725055598,-3015.62,0.00011016,2]
[347354035,1735725055608,-1831.59,0.00011016,2]
[347354037,1735725055618,-500.0,0.00011016,2]
[347354039,1735725055627,-1265.39,0.00011016,2]
[347354041,1735725055637,-1005.69,0.00011016,2]
[347354043,1735725055648,-500.0,0.00011016,2]
[347354045,1735725055660,-500.0,0.00011016,2]
[347354047,1735725055670,-1210.51,0.00011016,2]
[347354049,1735725055679,-500.0,0.00011016,2]
[347354051,1735725055689,-888.98,0.00011016,2]
[347354053,1735725055700,-485.31815395,0.00011016,2]
[347354055,1735725055711,-1539.84,0.00011016,2]
[347354057,1735725055720,-609.97,0.00011016,2]
[347354059,1735725055730,-608.27,0.00011016,2]
[347354061,1735725055740,-1365.97,0.00011016,2]
[347354063,1735725055749,-1590.91,0.00011016,2]
[347354065,1735725055759,-1273.53,0.00011016,2]
[347354067,1735725055769,-500.0,0.00011016,2]
[347354069,1735725055780,-1023.36,0.00011016,2]
[347354072,1735725055790,-2930.66,0.00011016,2]
[347354074,1735725055799,-500.0,0.00011016,2]
[347354076,1735725055809,-500.0,0.00011016,2]
[347354078,1735725055819,-500.0,0.00011016,2]
[347354080,1735725055828,-541.08,0.00011016,2]
[347354082,1735725055838,-1381.67,0.00011016,2]
[347354084,1735725055848,-1272.67,0.00011016,2]
[347354112,1735725056097,-500.0,0.00011016,2]
[347354114,1735725056113,-500.0,0.00011016,2]
[347354116,1735725056122,-619.73,0.00011016,2]
[347354118,1735725056131,-2115.81,0.00011016,2]
[347354120,1735725056141,-500.0,0.00011016,2]
[347354122,1735725056150,-641.54,0.00011016,2]
[347354124,1735725056159,-786.17,0.00011016,2]
[347354126,1735725056168,-500.0,0.00011016,2]
[347354128,1735725056178,-652.3,0.00011016,2]
[347354130,1735725056187,-500.0,0.00011016,2]
[347354132,1735725056196,-1196.94,0.00011016,2]
[347354134,1735725056205,-1345.65,0.00011016,2]
[347354136,1735725056214,-500.0,0.00011016,2]
[347354138,1735725056224,-500.0,0.00011016,2]
[347354140,1735725056233,-2544.61,0.00011016,2]
[347354142,1735725056242,-1610.83,0.00011016,2]
[347354144,1735725056251,-725.51,0.00011016,2]
[347354146,1735725056261,-500.0,0.00011016,2]
[347354148,1735725056270,-500.0,0.00011016,2]
[347354151,1735725056279,-588.38,0.00011016,2]
[347354153,1735725056288,-500.0,0.00011016,2]
[347354155,1735725056297,-5219.24,0.00011016,2]
[347354157,1735725056307,-819.21,0.00011016,2]
[347354159,1735725056316,-500.0,0.00011016,2]
[347354161,1735725056325,-500.0,0.00011016,2]
[347354163,1735725056334,-500.0,0.00011016,2]
[347354165,1735725056343,-500.0,0.00011016,2]
[347354167,1735725056352,-500.0,0.00011016,2]
[347354168,1735725056361,-500.0,0.00011016,2]
[347354171,1735725056371,-500.0,0.00011016,2]
[347354173,1735725056380,-500.0,0.00011016,2]
[347354175,1735725056389,-500.0,0.00011016,2]
[347354177,1735725056399,-500.0,0.00011016,2]
[347354179,1735725056411,-500.0,0.00011016,2]
[347354181,1735725056420,-500.0,0.00011016,2]
[347354183,1735725056430,-500.0,0.00011016,2]
[347354185,1735725056439,-500.0,0.00011016,2]
[347354187,1735725056448,-500.0,0.00011016,2]
[347354189,1735725056458,-297.61751791,0.00011016,2]
[347354191,1735725056467,-929.3,0.00011016,2]
[347354193,1735725056476,-500.0,0.00011016,2]
[347354195,1735725056485,-560.22,0.00011016,2]
[347354197,1735725056494,-916.62,0.00011016,2]
[347354199,1735725056503,-1061.26,0.00011016,2]
[347354201,1735725056513,-500.0,0.00011016,2]
[347354203,1735725056522,-2323.75,0.00011016,2]
[347354204,1735725056532,-10581.07887583,0.00011016,2]
[347354207,1735725056545,-481.063585,0.00011016,2]
[347354219,1735725056651,-1689.02479457,0.00011016,2]
[347355523,1735725073835,1200.0,9.479e-05,2]
[347355526,1735725581181,374.04,8.219e-05,2]
[347355529,1735726145523,-768.9,9.607e-05,2]
[347355530,1735726154022,-1741.87,9.607e-05,2]
[347355551,1735726232339,-177.16,9.725e-05,2]
[347355552,1735726232349,-250.0,9.775e-05,2]
[347355553,1735726232359,-236.71,9.896e-05,2]
[347355554,1735726232369,-1233.84,9.9e-05,2]
[347355555,1735726232379,-1000.0,9.919e-05,2]
[347355556,1735726232388,-200.0,9.939e-05,2]
[347355557,1735726232397,-167.82,9.992e-05,2]
[347355558,1735726232406,-2491.33,0.0001,2]
[347355559,1735726232415,-163.30361067,0.0001,7]
[347355560,1735726232425,-611.3,0.00010001,2]
[347355561,1735726232435,-300.0,0.000101,3]
[347355562,1735726232444,-221.1,0.00010137,2]
[347355563,1735726232453,-600.0,0.000102,3]
[347355564,1735726232463,-900.0,0.000103,3]
[347355565,1735726232472,-1200.0,0.000104,3]
[347355566,1735726232481,-771.41,0.00010441,2]
[347355567,1735726232491,-374.04,0.00010468,2]
[347355568,1735726232500,-158.086,0.0001047,2]
[347355569,1735726232509,-1500.0,0.000105,3]
[347355570,1735726232518,-500.0,0.00010575,2]
[347355571,1735726232527,-874.83,0.00010575,2]
[347355572,1735726232537,-300.0,0.000106,3]
[347355573,1735726232546,-200.0,0.00010631,2]
[347355574,1735726232560,-300.0,0.000107,3]
[347355575,1735726232570,-300.0,0.000108,3]
[347355576,1735726232579,-1200.0,0.00010849,2]
[347355577,1735726232589,-555.6118192,0.00010895,2]
[347355578,1735726232599,-300.0,0.000109,3]
[347355579,1735726232608,-416.66666,0.0001091,2]
[347355580,1735726232619,-502.6,0.00010913,2]
[347355581,1735726232629,-3892.0,0.00010915,2]
[347355582,1735726232638,-150.636,0.00010915,2]
[347355583,1735726232648,-1172.0,0.00010915,2]
[347355584,1735726232658,-9609.0,0.00010915,2]
[347355585,1735726232667,-794.33462918,0.00010917,2]
[347355586,1735726232676,-213.2109415,0.00010917,2]
[347355588,1735726232686,-882.63,0.00010994,2]
[347355590,1735726232695,-6407.1,0.00010994,2]
[347355592,1735726232705,-7958.78,0.00010994,2]
[347355594,1735726232714,-3866.93,0.00010994,2]
[347355596,1735726232724,-6475.21,0.00010994,2]
[347355598,1735726232734,-568.75,0.00010994,2]
[347355599,1735726232744,-6972.61,0.00010994,2]
[347355600,1735726232754,-1080.57,0.00010994,2]
[347355601,1735726232763,-2138.25,0.00010994,2]
[347355602,1735726232773,-2490.71,0.00010994,2]
[347355603,1735726232783,-3444.48,0.00010994,2]
[347355604,1735726232792,-551.41,0.00010994,2]
[347355605,1735726232801,-1009.91,0.00010994,2]
[347355606,1735726232810,-2296.46,0.00010994,2]
[347355607,1735726232822,-2421.83,0.00010994,2]
[347355608,1735726232831,-988.69,0.00010994,2]
[347355609,1735726232840,-598.46,0.00010995,2]
[347355610,1735726232849,-500.0,0.00010995,2]
[347355611,1735726232859,-640.67,0.00010995,2]
[347355612,1735726232869,-500.0,0.00010995,2]
[347355613,1735726232878,-500.0,0.00010995,2]
[347355614,1735726232888,-1178.05,0.00010995,2]
[347355615,1735726232897,-500.0,0.00010995,2]
[347355616,1735726232907,-2485.87,0.00010995,2]
[347355617,1735726232916,-756.91,0.00010995,2]
[347355618,1735726232925,-1904.44,0.00010995,2]
[347355619,1735726232935,-556.89708447,0.00010995,2]
[347355620,1735726232944,-623.17,0.00010995,2]
[347355621,1735726232954,-1143.31,0.00010995,2]
[347355622,1735726232964,-500.0,0.00010995,2]
[347355623,1735726232973,-738.36,0.00010995,2]
[347355624,1735726232983,-696.84,0.00010995,2]
[347355625,1735726232992,-500.0,0.00010995,2]
[347355626,1735726233002,-967.88,0.00010995,2]
[347355627,1735726233012,-1758.79,0.00010995,2]
[347355628,1735726233022,-500.0,0.00010995,2]
[347355629,1735726233032,-1659.45,0.00010995,2]
[347355630,1735726233042,-500.0,0.00010995,2]
[347355631,1735726233052,-526.81,0.00010995,2]
[347355632,1735726233061,-500.0,0.00010995,2]
[347355633,1735726233071,-500.0,0.00010995,2]
[347355634,1735726233081,-929.18,0.00010995,2]
[347355635,1735726233091,-726.03,0.00010995,2]
[347355636,1735726233101,-502.62,0.00010995,2]
[347355637,1735726233110,-500.0,0.00010995,2]
[347355638,1735726233120,-500.0,0.00010995,2]
[347355639,1735726233129,-500.0,0.00010995,2]
[347355640,1735726233139,-1244.49,0.00010995,2]
[347355641,1735726233149,-755.87,0.00010995,2]
[347355642,1735726233159,-500.0,0.00010995,2]
[347355643,1735726233169,-500.0,0.00010995,2]
[347355644,1735726233179,-500.0,0.00010995,2]
[347355645,1735726233190,-3084.99,0.00010995,2]
[347355646,1735726233199,-500.0,0.00010995,2]
[347355647,1735726233209,-500.0,0.00010995,2]
[347355648,1735726233219,-500.0,0.00010995,2]
[347355649,1735726233228,-500.0,0.00010995,2]
[347355650,1735726233237,-500.0,0.00010995,2]
[347355651,1735726233247,-500.0,0.00010995,2]
[347355652,1735726233256,-2006.06,0.00010995,2]
[347355653,1735726233266,-500.0,0.00010995,2]
[347355654,1735726233275,-1210.63,0.00010995,2]
[347355655,1735726233285,-500.0,0.00010995,2]
[347355656,1735726233295,-500.0,0.00010995,2]
[347355657,1735726233305,-967.94,0.00010995,2]
[347355658,1735726233315,-773.43,0.00010995,2]
[347355659,1735726233324,-2173.38,0.00010995,2]
[347355660,1735726233334,-582.9,0.00010995,2]
[347355661,1735726233343,-935.02,0.00010995,2]
[347355662,1735726233354,-1506.58,0.00010995,2]
[347355663,1735726233364,-500.0,0.00010995,2]
[347355664,1735726233374,-500.0,0.00010995,2]
[347355665,1735726233384,-2338.99,0.00010995,2]
[347355666,1735726233393,-1437.39,0.00010995,2]
[347355667,1735726233403,-500.0,0.00010995,2]
[347355668,1735726233412,-500.0,0.00010995,2]
[347355669,1735726233422,-1196.56,0.00010995,2]
[347355670,1735726233431,-500.0,0.00010995,2]
[347355671,1735726233441,-1327.88,0.00010995,2]
[347355672,1735726233451,-500.0,0.00010995,2]
[347355673,1735726233460,-500.0,0.00010995,2]
[347355674,1735726233470,-654.93,0.00010995,2]
[347355675,1735726233479,-500.0,0.00010995,2]
[347355676,1735726233489,-500.0,0.00010995,2]
[347355677,1735726233499,-500.0,0.00010995,2]
[347355678,1735726233508,-500.0,0.00010995,2]
[347355679,1735726233517,-500.0,0.00010995,2]
[347355680,1735726233527,-1380.37,0.00010995,2]
[347355681,1735726233536,-704.11,0.00010995,2]
[347355682,1735726233546,-788.35,0.00010995,2]
[347355683,1735726233555,-500.0,0.00010995,2]
[347355684,1735726233565,-804.44,0.00010995,2]
[347355685,1735726233574,-500.0,0.00010995,2]
[347355686,1735726233584,-517.68,0.00010995,2]
[347355687,1735726233593,-500.0,0.00010995,2]
[347355688,1735726233602,-500.0,0.00010995,2]
[347355689,1735726233612,-500.0,0.00010995,2]
[347355690,1735726233622,-500.0,0.00010995,2]
[347355691,1735726233632,-500.0,0.00010995,2]
[347355692,1735726233642,-500.0,0.00010995,2]
[347355693,1735726233651,-500.0,0.00010995,2]
[347355694,1735726233660,-500.0,0.00010995,2]
[347355695,1735726233669,-500.0,0.00010995,2]
[347355696,1735726233678,-1789.6,0.00010995,2]
[347355697,1735726233687,-500.0,0.00010995,2]
[347355698,1735726233696,-500.0,0.00010995,2]
[347355699,1735726233706,-598.24,0.00010995,2]
[347355700,1735726233715,-1639.15,0.00010995,2]
[347355701,1735726233724,-1028.83,0.00010995,2]
[347355702,1735726233734,-500.0,0.00010995,2]
[347355703,1735726233743,-594.24,0.00010995,2]
[347355704,1735726233753,-525.8,0.00010995,2]
[347355705,1735726233763,-1140.98,0.00010995,2]
[347355706,1735726233773,-500.0,0.00010995,2]
[347355707,1735726233782,-903.95,0.00010995,2]
[347355708,1735726233792,-500.0,0.00010995,2]
[347355709,1735726233801,-500.0,0.00010995,2]
[347355710,1735726233810,-500.0,0.00010995,2]
[347355711,1735726233822,-500.0,0.00010995,2]
[347355712,1735726233833,-500.0,0.00010995,2]
[347355713,1735726233842,-2313.73,0.00010995,2]
[347355714,1735726233852,-500.0,0.00010995,2]
[347355715,1735726233862,-500.0,0.00010995,2]
[347355716,1735726233873,-597.54,0.00010995,2]
[347355717,1735726233882,-531.12,0.00010995,2]
[347355718,1735726233892,-500.0,0.00010995,2]
[347355719,1735726233902,-500.0,0.00010995,2]
[347355720,1735726233912,-500.0,0.00010995,2]
[347355721,1735726233921,-500.0,0.00010995,2]
[347355722,1735726233931,-500.0,0.00010995,2]
[347355723,1735726233940,-1454.25,0.00010995,2]
[347355724,1735726233949,-626.03,0.00010995,2]
[347355725,1735726233960,-544.52,0.00010995,2]
[347355726,1735726233969,-869.88,0.00010995,2]
[347355727,1735726233979,-500.0,0.00010995,2]
[347355728,1735726233989,-502.21,0.00010995,2]
[347355729,1735726233999,-500.0,0.00010995,2]
[347355730,1735726234008,-500.0,0.00010995,2]
[347355731,1735726234018,-769.16,0.00010995,2]
[347355732,1735726234027,-1538.3,0.00010995,2]
[347355733,1735726234036,-500.0,0.00010995,2]
[347355734,1735726234046,-500.0,0.00010995,2]
[347355735,1735726234055,-500.0,0.00010995,2]
[347355736,1735726234064,-500.0,0.00010995,2]
[347355737,1735726234074,-500.0,0.00010995,2]
[347355738,1735726234083,-500.0,0.00010995,2]
[347355739,1735726234093,-480.38089633,0.00010995,2]
[347355740,1735726234103,-517.02,0.00010995,2]
[347355741,1735726234112,-2214.56,0.00010995,2]
[347355742,1735726234122,-833.39,0.00010995,2]
[347355743,1735726234131,-500.0,0.00010995,2]
[347355744,1735726234141,-833.93,0.00010995,2]
[347355745,1735726234150,-500.0,0.00010995,2]
[347355746,1735726234159,-775.58,0.00010995,2]
[347355747,1735726234169,-500.0,0.00010995,2]
[347355748,1735726234178,-500.0,0.00010995,2]
[347355749,1735726234188,-500.0,0.00010995,2]
[347355750,1735726234197,-500.0,0.00010995,2]
[347355751,1735726234206,-587.5,0.00010995,2]
[347355752,1735726234216,-500.0,0.00010995,2]
[347355753,1735726234225,-1273.02,0.00010995,2]
[347355754,1735726234234,-1166.37,0.00010995,2]
[347355755,1735726234243,-500.0,0.00010995,2]
[347355756,1735726234253,-500.0,0.00010995,2]
[347355757,1735726234262,-579.86,0.00010995,2]
[347355758,1735726234272,-500.0,0.00010995,2]
[347355759,1735726234281,-872.51,0.00010995,2]
[347355760,1735726234290,-811.3,0.00010995,2]
[347355761,1735726234299,-561.71,0.00010995,2]
[347355762,1735726234309,-714.3,0.00010995,2]
[347355763,1735726234318,-1140.96,0.00010995,2]
[347355764,1735726234328,-1516.63,0.00010995,2]
[347355765,1735726234337,-500.0,0.00010995,2]
[347355766,1735726234347,-806.68,0.00010995,2]
[347355767,1735726234356,-826.02,0.00010995,2]
[347355768,1735726234366,-500.0,0.00010995,2]
[347355769,1735726234375,-500.0,0.00010995,2]
[347355770,1735726234385,-500.0,0.00010995,2]
[347355771,1735726234394,-711.93,0.00010995,2]
[347355772,1735726234404,-539.07,0.00010995,2]
[347355773,1735726234414,-2756.25,0.00010995,2]
[347355774,1735726234423,-1710.02,0.00010995,2]
[347355775,1735726234432,-500.0,0.00010995,2]
[347355776,1735726234442,-1164.34,0.00010995,2]
[347355777,1735726234452,-500.0,0.00010995,2]
[347355778,1735726234462,-500.0,0.00010995,2]
[347355779,1735726234471,-500.0,0.00010995,2]
[347355780,1735726234481,-500.0,0.00010995,2]
[347355781,1735726234490,-1850.39,0.00010995,2]
[347355782,1735726234499,-542.94140953,0.00010995,2]
[347355783,1735726234509,-541.56,0.00010995,2]
[347355784,1735726234518,-28.14726504,0.00010995,2]
[347355785,1735726235475,-471.85273496,0.00010995,2]
[347355786,1735726235485,-1624.29640362,0.00010995,2]
[347355787,1735726235496,-96.68359638,0.00010995,2]
[347355788,1735726235505,-640.79,0.00010995,2]
[347355789,1735726235514,-500.0,0.00010995,2]
[347355790,1735726235523,-561.08,0.00010995,2]
[347355791,1735726235533,-957.9341752,0.00010995,2]
[347355792,1735726235544,-1273.05622712,0.00010995,2]
[347355793,1735726235572,-688.40959768,0.00010995,2]
[347355794,1735726235582,-1074.14,0.00010995,2]
[347355795,1735726235591,-1708.53,0.00010995,2]
[347355796,1735726235600,-500.0,0.00010995,2]
[347355797,1735726235609,-1247.53,0.00010995,2]
[347355798,1735726235619,-1298.64,0.00010995,2]
[347355799,1735726235629,-621.15,0.00010995,2]
[347355800,1735726235638,-597.47,0.00010995,2]
[347355801,1735726235647,-3067.71,0.00010995,2]
[347355802,1735726235657,-563.11,0.00010995,2]
[347355803,1735726235666,-922.79,0.00010995,2]
[347355804,1735726235676,-1649.06,0.00010995,2]
[347355805,1735726235685,-495.7288245,0.00010995,2]
[347355806,1735726235695,-961.64,0.00010995,2]
[347355807,1735726235704,-1640.3,0.00010995,2]
[347355808,1735726235713,-500.0,0.00010995,2]
[347355809,1735726235723,-500.0,0.00010995,2]
[347355810,1735726235732,-500.0,0.00010995,2]
[347355811,1735726235742,-1157.1,0.00010995,2]
[347355812,1735726235751,-500.0,0.00010995,2]
[347355813,1735726235760,-2312.24,0.00010995,2]
[347355814,1735726235770,-500.0,0.00010995,2]
[347355815,1735726235780,-1122.76,0.00010995,2]
[347355816,1735726235789,-500.0,0.00010995,2]
[347355817,1735726235800,-976.62,0.00010995,2]
[347355818,1735726235809,-708.45,0.00010995,2]
[347355819,1735726235819,-500.0,0.00010995,2]
[347355820,1735726235834,-529.08,0.00010995,2]
[347355821,1735726235843,-1239.58,0.00010995,2]
[347355822,1735726235852,-1451.04,0.00010995,2]
[347355823,1735726235861,-228.7853375,0.00010995,2]
[347355824,1735726235874,-271.2146625,0.00010995,2]
[347355825,1735726235884,-1778.07,0.00010995,2]
[347355826,1735726235893,-631.27,0.00010995,2]
[347355827,1735726235902,-500.0,0.00010995,2]
[347355828,1735726235912,-514.48,0.00010995,2]
[347355829,1735726235922,-828.46,0.00010995,2]
[347355830,1735726235931,-500.0,0.00010995,2]
[347355831,1735726235940,-814.12,0.00010995,2]
[347355832,1735726235950,-3024.76,0.00010995,2]
[347355833,1735726235959,-1376.86,0.00010995,2]
[347355834,1735726235969,-500.0,0.00010995,2]
[347355835,1735726235978,-500.0,0.00010995,2]
[347355836,1735726235988,-762.17,0.00010995,2]
[347355837,1735726235997,-798.35,0.00010995,2]